bitfinex-derivatives/quotes_ETHF0:USTF0_20250530
["timestamp","ask_amount","ask_price","bid_price","bid_amount"]
[1748645804968,3.2078,2531.9,2530.4,6.31]
[1748645805261,3.99767,2531.3,2530.4,6.31]
[1748645805666,3.2078,2531.3,2530.0,39.747]
[1748645805970,3.2078,2531.0,2530.5,15.66763366]
[1748645806170,3.2078,2530.6,2530.5,15.66763366]
[1748645806562,0.0059244,2530.8,2530.5,15.66763366]
[1748645806766,0.0059244,2530.8,2530.5,3.2078]
[1748645807271,3.2078,2530.6,2530.5,9.5178]
[1748645807566,3.2078,2530.6,2530.5,9.5208]
[1748645807768,3.2078,2530.6,2530.5,3.2078]
[1748645807967,3.2078,2530.6,2530.5,9.5208]
[1748645808172,3.2078,2530.6,2530.5,3.2078]
[1748645809463,3.2078,2530.6,2530.5,9.5208]
[1748645809672,3.2078,2530.6,2530.5,3.2078]
[1748645809970,3.2078,2530.6,2530.5,9.5208]
[1748645812169,3.99789,2530.6,2530.5,9.5208]
[1748645813172,3.2078,2530.6,2530.5,9.5208]
[1748645813577,3.99789,2530.6,2530.5,9.5208]
[1748645813775,3.2078,2530.6,2530.5,9.5208]
[1748645814268,0.79009,2530.6,2530.5,9.5208]
[1748645815071,3.2078,2531.3,2530.5,14.5208]
[1748645815272,3.2078,2531.3,2530.9,3.2078]
[1748645815474,0.78993,2531.1,2531.0,7.6428]
[1748645816574,0.78993,2531.1,2531.0,1.3248]
[1748645816775,0.78993,2531.1,2531.0,6.319]
[1748645816978,3.2137244,2531.3,2530.8,0.0059244]
[1748645816979,0.79,2530.9,2530.8,0.0059244]
[1748645817180,3.9978,2530.9,2530.8,0.0059244]
[1748645818877,3.2078,2531.1,2530.8,5.0059244]
[1748645819073,3.2078,2531.1,2530.9,1.2488]
[1748645819074,0.78997,2531.0,2530.9,1.2488]
[1748645819985,0.79,2530.9,2530.8,0.0059244]
[1748645821386,0.79,2530.9,2530.8,5.0059244]
[1748645823289,0.78992,2531.2,2530.8,5.0059244]
[1748645823493,0.0059244,2531.3,2530.9,1.3191]
[1748645823791,3.2078,2532.1,2531.2,3.2078]
[1748645823989,0.7898,2531.6,2531.5,3.2078]
[1748645824289,3.2078,2531.8,2531.5,6.321]
[1748645824491,0.78975,2531.7,2531.6,1.3191]
[1748645825284,0.78975,2531.7,2531.6,6.321]
[1748645825484,0.78975,2531.7,2531.6,6.32]
[1748645825692,2.03685,2531.7,2531.6,6.32]
[1748645826791,0.0059244,2531.9,2531.6,6.32]
[1748645826994,0.78975,2531.7,2531.6,6.32]
[1748645827287,1.97431,2531.8,2531.0,3.2078]
[1748645827488,1.97431,2531.8,2531.1,6.32]
[1748645827489,0.7899,2531.2,2531.1,6.32]
[1748645827797,1.97453,2531.5,2531.1,6.32]
[1748645828095,0.78993,2531.1,2531.0,3.2078]
[1748645828296,0.78993,2531.1,2531.0,9.2838]
[1748645828590,0.78993,2531.1,2531.0,14.2838]
[1748645828790,0.78993,2531.1,2531.0,3.2078]
[1748645828985,0.79,2530.9,2530.8,0.0059244]
[1748645829189,0.79,2530.9,2530.8,6.0819244]
[1748645830195,0.79,2530.9,2530.8,0.0059244]
[1748645830489,0.79,2530.9,2530.8,6.0819244]
[1748645831085,0.79,2530.9,2530.8,6.8719544]
[1748645831287,0.79,2530.9,2530.8,6.0819244]
[1748645831683,3.2078,2530.2,2528.3,3.2078]
[1748645831888,3.2078,2530.2,2527.4,6.076]
[1748645831889,3.2078,2529.3,2528.2,3.2078]
[1748645832087,3.2078,2529.0,2528.3,6.076]
[1748645832297,3.2078,2529.0,2528.4,0.0791014]
[1748645832588,3.99855,2528.5,2528.4,0.0791014]
[1748645832789,3.2078,2528.5,2527.3,0.79112]
[1748645832987,3.2078,2527.5,2527.4,0.8702227]
[1748645833187,3.2078,2527.9,2527.4,0.0791327]
[1748645833492,1.97626,2529.3,2527.8,1.97739]
[1748645833685,3.2078,2528.7,2528.0,3.2078]
[1748645833885,0.0059244,2528.6,2528.0,3.2078]
[1748645834185,0.0059244,2528.6,2528.1,6.37]
[1748645834389,0.0059244,2528.6,2528.3,0.7908]
[1748645834585,0.0059244,2528.6,2528.1,6.37]
[1748645834792,0.0059244,2528.6,2528.5,0.79075]
[1748645835189,3.2078,2529.3,2528.5,5.79075]
[1748645835395,3.2078,2529.3,2528.7,3.2078]
[1748645835588,3.2078,2529.3,2529.2,0.79053]
[1748645835996,3.2078,2529.6,2529.5,0.79042]
[1748645836197,3.2078,2529.6,2529.5,7.16242]
[1748645836397,0.0059244,2529.8,2529.5,6.372]
[1748645836784,1.3976492,2529.7,2529.6,0.7904]
[1748645838093,1.3976492,2529.7,2529.6,5.7904]
[1748645838395,1.3976492,2529.7,2529.6,0.7904]
[1748645838593,1.3976492,2529.7,2529.6,7.1634]
[1748645838994,0.8976492,2529.7,2529.6,12.1634]
[1748645839194,3.2078,2530.3,2530.2,0.79022]
[1748645839391,3.059818,2530.6,2530.2,10.371]
[1748645839587,1.2357,2530.5,2530.2,10.371]
[1748645839794,1.2357,2530.5,2530.2,9.5808]
[1748645839992,0.79019,2530.3,2530.2,3.2078]
[1748645840498,1.2416244,2530.5,2530.2,3.2078]
[1748645840687,2.0317644,2530.5,2530.2,3.99801]
[1748645840887,1.2416244,2530.5,2530.2,3.2078]
[1748645841385,0.79019,2530.3,2530.2,3.2078]
[1748645843302,3.2078,2530.3,2529.5,4.4678]
[1748645843606,0.0059244,2530.5,2530.4,0.79016]
[1748645843795,0.0059244,2530.5,2530.4,7.16316]
[1748645844006,0.2034244,2530.5,2530.4,7.16316]
[1748645844699,0.79023,2530.2,2529.9,3.2078]
[1748645844894,1.2781,2530.4,2530.0,6.373]
[1748645845098,1.2781,2530.4,2530.3,3.2078]
[1748645845099,2.06826,2530.4,2530.3,3.2078]
[1748645845998,9.4859,2530.4,2529.8,3.2078]
[1748645846202,0.7903,2530.0,2529.8,6.373]
[1748645846399,1.3119,2529.9,2529.8,6.373]
[1748645846698,1.97548,2530.3,2529.6,6.373]
[1748645847001,1.3119,2530.0,2529.6,6.373]
[1748645847299,2.4731324,2530.5,2530.1,0.79025]
[1748645847499,1.3119,2530.4,2530.2,6.373]
[1748645848006,2.10207,2530.4,2530.2,6.373]
[1748645848199,1.3119,2530.4,2530.0,0.79027]
[1748645848503,1.3119,2530.4,2530.1,6.373]
[1748645848699,1.3119,2530.4,2529.8,3.2078]
[1748645848899,1.3119,2530.4,2530.2,6.373]
[1748645849104,2.10207,2530.4,2530.2,6.373]
[1748645849506,1.3119,2530.4,2530.2,7.16321]
[1748645849800,0.79022,2530.2,2530.1,6.373]
[1748645850006,0.79034,2529.8,2529.7,6.128]
[1748645850306,3.22356,2530.1,2529.5,3.99823]
[1748645850603,0.79023,2530.2,2529.6,1.976]
[1748645850804,2.03813,2530.2,2529.6,3.2236]
[1748645850997,1.2479,2530.2,2530.1,0.79025]
[1748645851201,1.2479,2530.2,2529.8,3.2078]
[1748645851202,1.2479,2530.2,2530.0,6.128]
[1748645851398,0.2034244,2530.5,2530.1,3.2078]
[1748645851598,0.9935544,2530.5,2530.1,6.128]
[1748645851907,0.9935644,2530.5,2530.1,6.128]
[1748645852111,0.2034244,2530.5,2530.1,6.91823]
[1748645852409,0.79017,2530.4,2530.2,0.79021]
[1748645852610,2.69356327,2530.4,2530.1,6.128]
[1748645852809,2.69356327,2530.4,2530.3,0.79019]
[1748645853609,1.37826327,2530.4,2530.3,0.79019]
[1748645854316,0.2034244,2530.5,2530.4,0.79016]
[1748645855413,0.2034244,2530.5,2530.1,9.3358]
[1748645855612,0.79022,2530.2,2530.1,6.128]
[1748645856907,1.97563,2530.1,2529.7,6.91836]
[1748645857113,0.79034,2529.9,2529.8,0.79034]
[1748645857607,1.97573,2530.0,2529.5,3.2078]
[1748645857809,0.7904,2529.6,2529.5,3.2078]
[1748645858014,0.79044,2529.5,2529.4,6.128]
[1748645858214,2.14244,2529.5,2529.4,6.128]
[1748645859715,0.79047,2529.4,2529.3,0.0059244]
[1748645859916,1.97632,2529.3,2528.8,6.129]
[1748645860213,6.42528,2529.2,2528.4,3.2078]
[1748645860409,6.42528,2529.2,2528.4,3.26271]
[1748645860410,5.82787683,2529.2,2528.4,3.26271]
[1748645860720,7.80421683,2529.2,2528.6,0.7907]
[1748645860916,0.79068,2528.8,2528.6,0.7966244]
[1748645861115,1.2411,2528.7,2528.6,0.7966244]
[1748645861316,3.2078,2528.9,2528.7,0.79069]
[1748645861515,0.79069,2528.7,2528.6,0.0059244]
[1748645862116,2.15157,2528.8,2528.6,0.7966344]
[1748645862315,1.3609,2528.8,2528.6,0.7966344]
[1748645862610,2.15156,2528.8,2528.6,0.7966344]
[1748645862815,0.79069,2528.7,2528.6,0.0059244]
[1748645863017,2.15159,2528.7,2528.6,0.0059244]
[1748645863917,1.3609,2528.7,2528.6,0.0059244]
[1748645864118,2.15159,2528.7,2528.6,0.0059244]
[1748645865022,0.79069,2528.7,2528.6,0.0059244]
[1748645865620,5.79069,2528.7,2528.6,0.0059244]
[1748645865815,8.2078,2528.7,2528.1,3.2078]
[1748645866023,0.79096,2527.9,2527.8,6.131]
[1748645866219,7.16193,2528.3,2527.6,3.2078]
[1748645866419,6.54068,2527.8,2527.2,9.0958]
[1748645866610,0.79112,2527.3,2527.2,3.2078]
[1748645866813,5.18554,2527.4,2526.9,5.888]
[1748645867015,0.79122,2527.0,2526.9,6.67925]
[1748645867314,0.79122,2527.0,2526.9,5.888]
[1748645867516,0.7912,2527.1,2526.9,5.888]
[1748645867716,1.1106,2527.4,2526.9,5.888]
[1748645867914,1.3384244,2527.5,2527.4,0.79109]
[1748645868218,0.0059244,2527.5,2527.4,0.79109]
[1748645868516,3.2078,2528.1,2528.0,0.7909]
[1748645868716,1.3325,2528.2,2527.7,3.2078]
[1748645868915,1.3325,2528.0,2527.9,0.79092]
[1748645869421,0.79096,2527.9,2527.7,4.0047044]
[1748645869623,1.3325,2527.8,2527.7,4.0047044]
[1748645869824,5.52907,2527.8,2527.7,0.0059244]
[1748645870023,10.52907,2527.8,2527.7,0.0059244]
[1748645871220,9.7381,2527.8,2527.0,5.89]
[1748645871421,0.79102,2527.7,2527.6,0.79102]
[1748645871721,0.1978,2527.8,2527.5,3.2078]
[1748645871924,0.1978,2527.8,2527.7,0.791]
[1748645872415,0.1978,2527.8,2527.5,3.2078]
[1748645872614,1.5487,2527.8,2527.5,3.2078]
[1748645872809,0.79102,2527.7,2527.5,3.2078]
[1748645873022,1.5487,2527.8,2527.2,5.18567]
[1748645873219,1.3509,2527.6,2527.5,0.79106]
[1748645874023,0.1978,2527.8,2527.5,3.2078]
[1748645874223,0.1978,2527.8,2527.7,0.791]
[1748645874725,0.1978,2527.8,2527.7,6.681]
[1748645875422,1.2522,2528.5,2528.1,0.79087]
[1748645875626,1.2522,2528.5,2528.2,0.79083]
[1748645875816,1.2522,2528.5,2528.2,7.1776]
[1748645876326,1.2522,2528.5,2528.3,0.79079]
[1748645876529,1.2522,2528.5,2528.3,2.07839]
[1748645876729,1.2522,2528.5,2528.1,3.2137244]
[1748645876929,2.04296,2528.5,2528.1,4.0045644]
[1748645877229,0.1977,2528.4,2528.1,3.2137244]
[1748645877426,0.79083,2528.2,2528.1,3.2137244]
[1748645877629,0.79083,2528.2,2528.1,0.0059244]
[1748645878026,0.79095,2527.8,2527.7,3.2078]
[1748645878225,0.79103,2527.6,2527.3,10.43874163]
[1748645878530,1.369,2527.7,2527.3,10.43874163]
[1748645878731,2.15999,2527.7,2527.5,0.79104]
[1748645879031,0.79096,2527.8,2527.5,0.79104]
[1748645879232,3.2078,2528.2,2527.7,1.97748]
[1748645879431,3.2078,2528.2,2528.1,0.79086]
[1748645879933,1.5667,2528.4,2528.3,0.7908]
[1748645880126,0.1977,2528.4,2528.3,6.6818]
[1748645880727,0.1977,2528.4,2528.2,2.02842]
[1748645880920,0.79083,2528.2,2528.1,3.2078]
[1748645881231,0.79108,2527.4,2527.3,0.02044163]
[1748645881624,1.2562,2527.6,2527.3,0.02044163]
[1748645881830,1.2562,2527.4,2527.3,0.81155163]
[1748645882025,3.2078,2528.2,2527.4,1.97769]
[1748645882230,3.2078,2528.2,2527.7,3.2078]
[1748645882426,1.2562,2528.1,2527.7,3.2078]
[1748645882629,1.2562,2528.1,2528.0,0.79089]
[1748645882931,0.79096,2527.8,2527.5,2.325]
[1748645883121,1.2562,2528.1,2527.5,4.30258]
[1748645883327,1.2562,2528.1,2527.9,0.7909]
[1748645883521,1.2562,2528.1,2527.3,0.02044163]
[1748645883522,0.79108,2527.4,2527.3,0.02044163]
[1748645884529,5.79108,2527.4,2527.3,0.02044163]
[1748645884730,7.05188,2527.4,2527.3,0.02044163]
[1748645884934,2.05188,2527.4,2527.3,0.02044163]
[1748645885232,3.2078,2528.1,2527.3,0.02044163]
[1748645885428,2.05177,2527.8,2527.3,5.91244163]
[1748645885631,0.79102,2527.6,2527.5,3.2078]
[1748645885928,0.79108,2527.4,2527.3,0.02044163]
[1748645886124,1.3397,2527.5,2527.3,0.02044163]
[1748645886325,2.13075,2527.5,2527.3,0.02044163]
[1748645886531,1.3397,2527.5,2527.3,0.02044163]
[1748645886734,1.3397,2527.5,2527.4,0.79108]
[1748645886933,1.3397,2527.5,2527.3,0.02044163]
[1748645887133,1.3397,2527.5,2527.4,0.79108]
[1748645887337,0.79093,2527.9,2527.3,0.02044163]
[1748645887537,0.79093,2527.9,2527.7,0.79097]
[1748645887740,2.13064,2527.9,2527.7,0.79097]
[1748645888037,3.2078,2528.3,2527.8,1.9774]
[1748645888234,3.2078,2528.3,2528.2,0.79083]
[1748645888637,0.7908,2528.3,2527.8,1.3257]
[1748645888846,0.1977,2528.4,2528.3,0.7908]
[1748645889233,0.1977,2528.4,2528.2,8.02511]
[1748645889433,0.1977,2528.4,2528.3,0.7908]
[1748645889633,0.1977,2528.4,2528.3,2.1331]
[1748645890741,0.1977,2528.4,2528.1,3.2078]
[1748645890951,0.1977,2528.4,2528.3,0.7908]
[1748645891244,0.1977,2528.4,2528.1,3.2078]
[1748645891449,0.79092,2527.9,2527.8,3.2078]
[1748645891751,0.79085,2528.2,2527.9,0.79091]
[1748645891943,1.3487,2528.3,2527.8,3.2078]
[1748645892144,1.3487,2528.3,2527.9,1.289]
[1748645892340,1.3487,2528.3,2528.0,0.79087]
[1748645892548,0.79084,2528.2,2527.9,2.07989]
[1748645892743,0.79085,2528.2,2528.0,0.79089]
[1748645892944,0.1977,2528.4,2528.0,1.289]
[1748645893249,0.1977,2528.4,2528.3,0.7908]
[1748645893548,1.2975,2528.9,2528.8,0.79064]
[1748645893747,1.2975,2528.9,2528.7,0.79066]
[1748645894251,1.2975,2528.9,2528.8,0.79064]
[1748645894449,1.2975,2528.9,2528.6,1.289]
[1748645894750,0.7907,2528.6,2528.5,0.0059244]
[1748645894944,1.2975,2528.9,2528.5,0.0059244]
[1748645895339,0.0059244,2529.0,2528.9,0.79061]
[1748645896344,0.0059244,2529.0,2528.9,6.52561]
[1748645896541,0.0059244,2529.0,2528.9,5.735]
[1748645896851,0.7965044,2529.0,2528.9,5.735]
[1748645897147,0.79064,2528.8,2528.7,1.3262]
[1748645897358,0.79064,2528.8,2528.7,5.735]
[1748645898151,6.5239044,2529.0,2528.5,0.0059244]
[1748645898347,0.7907,2528.6,2528.5,5.7409244]
[1748645898548,0.79068,2528.7,2528.5,5.7409244]
[1748645898848,0.0059244,2529.0,2528.6,3.2078]
[1748645899050,0.0059244,2529.0,2528.9,3.99841]
[1748645899244,1.97601,2529.6,2528.9,3.2078]
[1748645899448,1.3406,2529.5,2529.0,7.0195]
[1748645899752,1.3406,2529.5,2529.0,1.2845]
[1748645899753,0.79055,2529.1,2529.0,1.2845]
[1748645899953,1.97622,2529.3,2528.9,5.735]
[1748645900256,0.79058,2529.0,2528.9,5.735]
[1748645900451,1.97638,2529.1,2528.6,3.2078]
[1748645900748,0.7907,2528.6,2528.5,0.0059244]
[1748645901960,2.1221,2528.6,2528.5,0.0059244]
[1748645903246,0.7907,2528.6,2528.5,0.0059244]
[1748645903447,2.1221,2528.6,2528.5,0.0059244]
[1748645905650,0.1977,2528.7,2528.6,0.7907]
[1748645905845,0.1977,2528.7,2528.6,7.8548]
[1748645906151,0.98837,2528.7,2528.6,7.0641]
[1748645906349,0.7907,2528.6,2528.5,8.9477244]
[1748645906651,0.7907,2528.6,2528.5,3.2137244]
[1748645906857,0.7907,2528.6,2528.5,8.9477244]
[1748645907553,0.7907,2528.6,2528.5,10.2321244]
[1748645907850,0.7907,2528.6,2528.5,3.2137244]
[1748645908049,1.2736,2528.6,2528.5,3.2137244]
[1748645908255,6.1697,2528.7,2528.6,0.7907]
[1748645908452,6.96037,2528.7,2528.6,1.2844]
[1748645908954,6.1697,2528.7,2528.6,7.8091]
[1748645909154,6.1697,2528.7,2528.6,8.8207]
[1748645909355,1.2795244,2529.4,2529.0,0.79055]
[1748645909557,0.79053,2529.2,2529.1,1.2844]
[1748645910251,1.2795244,2529.4,2529.1,7.80894]
[1748645910457,0.79052,2529.2,2529.1,7.0184]
[1748645910657,1.2795244,2529.4,2529.1,7.0184]
[1748645910857,0.79052,2529.2,2529.1,7.0184]
[1748645911761,0.79058,2529.0,2528.9,5.734]
[1748645912859,0.79058,2529.0,2528.9,6.52461]
[1748645913055,0.1968,2529.3,2528.9,5.734]
[1748645913259,0.1968,2529.3,2529.2,0.79052]
[1748645913461,0.1968,2529.3,2529.0,1.2866]
[1748645913761,0.0059244,2529.4,2529.3,0.79049]
[1748645914564,0.7963744,2529.4,2529.3,1.0075]
[1748645914762,0.7963744,2529.4,2529.3,2.2635]
[1748645915465,0.0059244,2529.4,2529.3,2.2635]
[1748645915765,0.7963744,2529.4,2529.3,2.2635]
[1748645916067,0.7963744,2529.4,2529.3,3.05399]
[1748645916266,5.1831,2530.5,2530.0,0.79026]
[1748645916464,0.79028,2530.0,2529.8,9.73111]
[1748645916857,1.2603,2530.4,2529.8,8.9408]
[1748645917058,0.79017,2530.3,2529.8,8.9408]
[1748645917265,0.7961144,2530.3,2530.1,0.79023]
[1748645917469,0.7961044,2530.3,2530.0,0.79024]
[1748645917663,0.7961044,2530.3,2530.1,1.3698]
[1748645917863,0.7902,2530.2,2530.1,1.3698]
[1748645918065,0.0059244,2530.3,2530.1,1.3698]
[1748645918370,0.79023,2530.2,2530.0,0.79025]
[1748645918559,0.0059244,2530.3,2530.2,0.7902]
[1748645918759,0.0059244,2530.3,2529.9,1.3698]
[1748645918955,0.7961044,2530.3,2530.1,0.79021]
[1748645919165,0.0059244,2530.3,2530.2,0.7902]
[1748645919868,0.0059244,2530.3,2530.1,0.79023]
[1748645920070,0.0059244,2530.3,2529.9,1.3698]
[1748645920271,0.0059244,2530.3,2529.9,3.34552]
[1748645920463,0.0059244,2530.3,2529.9,1.3698]
[1748645920669,0.0059244,2530.3,2530.1,0.79023]
[1748645920875,0.0059244,2530.3,2529.9,1.3698]
[1748645920876,0.0059244,2530.3,2530.2,0.7902]
[1748645921167,0.7961144,2530.3,2530.1,0.79021]
[1748645921667,0.0059244,2530.3,2530.2,0.7902]
[1748645922469,0.7960944,2530.3,2530.2,0.7902]
[1748645922969,0.7960944,2530.3,2530.1,1.257]
[1748645923163,0.7960944,2530.3,2530.1,2.04722]
[1748645923365,0.7961044,2530.3,2530.2,0.7902]
[1748645923561,0.7961044,2530.3,2530.2,1.3647]
[1748645924376,0.79023,2530.1,2530.0,0.9742]
[1748645924567,0.7903,2529.9,2529.8,0.0059244]
[1748645925273,11.7623,2529.9,2529.8,0.0059244]
[1748645925466,6.7623,2529.9,2529.8,0.0059244]
[1748645925769,0.79058,2529.0,2528.9,3.2078]
[1748645926370,0.79058,2529.0,2528.9,3.99841]
[1748645926571,0.79058,2529.0,2528.9,3.2078]
[1748645927371,0.79064,2528.8,2528.7,0.0059244]
[1748645927572,1.2991,2528.9,2528.7,0.0059244]
[1748645927772,0.79064,2528.8,2528.7,0.0059244]
[1748645928267,6.97661,2528.8,2528.1,0.9881]
[1748645928472,0.79073,2528.6,2528.4,0.79074]
[1748645928774,0.79073,2528.5,2528.4,0.79074]
[1748645929163,4.1679,2528.9,2528.3,5.1848]
[1748645929164,3.2078,2528.9,2528.3,5.1848]
[1748645929363,0.79065,2528.8,2528.6,3.2078]
[1748645929568,0.0059244,2529.0,2528.3,3.2137244]
[1748645929874,0.7907,2528.7,2528.5,2.06282]
[1748645930071,0.7907,2528.7,2528.6,0.7907]
[1748645930376,0.7907,2528.7,2528.5,2.06282]
[1748645930576,0.79065,2528.8,2528.5,1.2721]
[1748645930772,2.03543,2528.9,2528.7,0.79065]
[1748645930962,0.0059244,2529.0,2528.5,3.24891]
[1748645931169,0.0059244,2529.0,2528.6,8.6988]
[1748645931364,0.79061,2528.9,2528.8,0.79063]
[1748645931565,0.0059244,2529.0,2528.8,0.79063]
[1748645931777,0.79061,2528.9,2528.8,0.79063]
[1748645931973,0.0059244,2529.0,2528.9,0.79061]
[1748645932272,3.2078,2529.6,2528.9,3.99841]
[1748645932573,1.3564,2529.8,2529.7,0.79036]
[1748645932773,1.3564,2529.8,2529.6,0.79037]
[1748645932963,0.79038,2529.7,2529.6,0.79037]
[1748645933168,1.3564,2529.8,2529.5,1.2958]
[1748645933476,0.79039,2529.6,2529.5,1.2958]
[1748645933776,1.3564,2529.8,2529.5,1.2958]
[1748645933975,0.79033,2529.8,2529.5,1.2958]
[1748645934178,0.0059244,2529.9,2529.8,0.79033]
[1748645934475,0.0059244,2529.9,2529.8,6.28133]
[1748645935073,0.0059244,2529.9,2529.7,0.79036]
[1748645935074,0.79035,2529.8,2529.7,0.79036]
[1748645935275,2.08195,2529.8,2529.7,0.79036]
[1748645935467,0.0059244,2529.9,2529.8,0.79033]
[1748645935677,0.0059244,2529.9,2529.8,3.99813]
[1748645936573,0.0059244,2529.9,2529.8,5.29053]
[1748645937173,0.7962244,2529.9,2529.8,3.2078]
[1748645937374,0.0059244,2529.9,2529.8,3.99813]
[1748645937576,0.0059244,2529.9,2529.8,5.29053]
[1748645937976,0.7962244,2529.9,2529.8,5.29053]
[1748645938182,0.7962244,2529.9,2529.8,3.99813]
[1748645938481,0.0059244,2529.9,2529.8,3.99813]
[1748645938680,0.7962244,2529.9,2529.8,3.99813]
[1748645939180,0.7962244,2529.9,2529.8,0.79033]
[1748645939381,0.0059244,2529.9,2529.8,0.79033]
[1748645939581,0.0059244,2529.9,2529.8,2.05253]
[1748645939784,0.7962244,2529.9,2529.8,2.05253]
[1748645939983,0.7962444,2529.9,2529.8,0.79033]
[1748645940280,0.0059244,2529.9,2529.8,0.79033]
[1748645940477,0.0059244,2529.9,2529.8,2.05253]
[1748645941076,0.0059244,2529.9,2529.7,3.2078]
[1748645941283,0.0059244,2529.9,2529.8,6.04333]
[1748645941487,0.0059244,2529.9,2529.8,7.30313]
[1748645942882,0.0059244,2529.9,2529.8,0.79033]
[1748645943184,0.79033,2529.8,2529.7,5.253]
[1748645943484,1.3056,2529.8,2529.7,6.04336]
[1748645943683,1.59593,2529.8,2529.7,5.253]
[1748645944383,0.79042,2529.5,2529.4,4.0041544]
[1748645944582,0.79042,2529.5,2529.4,3.2137244]
[1748645944781,0.79042,2529.5,2529.4,4.0041744]
[1748645944981,0.79039,2529.6,2529.4,4.0041744]
[1748645945182,0.79042,2529.5,2529.4,4.0041744]
[1748645946186,0.79041,2529.6,2529.5,0.7904]
[1748645946687,0.79042,2529.5,2529.4,3.2137244]
[1748645946886,2.07142,2529.5,2529.4,3.2137244]
[1748645947081,2.07142,2529.5,2529.4,4.0041744]
[1748645947282,1.281,2529.5,2529.4,4.0041744]
[1748645947483,5.9779244,2529.9,2529.4,10.1898544]
[1748645947682,0.0059244,2529.9,2529.8,3.99813]
[1748645947886,0.0059244,2529.9,2529.8,9.25113]
[1748645948277,0.7962244,2529.9,2529.8,3.2078]
[1748645948478,0.7962244,2529.9,2529.4,0.0059244]
[1748645948479,0.79038,2529.7,2529.6,0.79037]
[1748645948787,1.2869244,2529.9,2529.8,0.79033]
[1748645948788,2.0772344,2529.9,2529.8,0.79033]
[1748645948986,0.79038,2529.7,2529.6,0.79036]
[1748645949182,0.7962444,2529.9,2529.8,0.79033]
[1748645949685,0.0059244,2529.9,2529.8,0.79033]
[1748645949882,0.7962244,2529.9,2529.8,0.79033]
[1748645950087,0.79035,2529.8,2529.7,0.79034]
[1748645950287,0.79038,2529.7,2529.6,0.79036]
[1748645950683,2.11985,2529.8,2529.7,0.79036]
[1748645951288,1.4095,2529.8,2529.7,0.79036]
[1748645951994,0.08,2529.8,2529.7,0.79036]
[1748645952388,0.87033,2529.8,2529.7,0.79036]
[1748645952892,0.79042,2529.5,2529.4,8.4667244]
[1748645953186,0.79042,2529.5,2529.4,0.0059244]
[1748645953393,0.79055,2529.1,2529.0,8.4608]
[1748645953595,0.7907,2528.6,2528.5,10.52924]
[1748645953793,0.7907,2528.7,2528.6,0.7907]
[1748645954089,0.7907,2528.7,2528.5,3.2078]
[1748645954090,2.5041,2529.0,2528.5,3.2078]
[1748645954294,0.79064,2528.9,2528.8,0.79064]
[1748645954592,1.3335,2528.9,2528.7,0.79065]
[1748645954887,0.79064,2528.9,2528.8,0.79063]
[1748645955092,2.12414,2528.9,2528.8,0.79063]
[1748645956296,0.79056,2529.1,2529.0,0.79055]
[1748645956796,0.79056,2529.1,2529.0,0.79056]
[1748645957097,6.76254,2529.2,2529.1,0.79055]
[1748645957292,5.972,2529.2,2529.1,0.79055]
[1748645957699,3.2078,2529.4,2528.9,1.97649]
[1748645957996,3.99825,2529.4,2529.3,0.79049]
[1748645958390,3.2078,2529.4,2529.3,0.79049]
[1748645958897,3.99825,2529.4,2529.3,0.79049]
[1748645959098,3.2078,2529.4,2529.3,0.79049]
[1748645959401,7.148,2529.7,2529.6,0.79039]
[1748645959600,1.176,2529.7,2529.6,0.79039]
[1748645959798,0.79042,2529.5,2529.4,2.10393]
[1748645959995,0.79047,2529.4,2529.3,0.79046]
[1748645960196,1.3296,2529.6,2529.2,5.254]
[1748645960399,0.79049,2529.3,2529.2,6.04449]
[1748645960699,0.79046,2529.4,2529.3,0.79045]
[1748645961107,2.12002,2529.6,2529.5,0.79042]
[1748645962099,0.79045,2529.4,2529.3,2.10397]
[1748645962300,0.79045,2529.4,2529.3,0.79047]
[1748645962499,0.79049,2529.3,2529.2,5.254]
[1748645962896,0.79049,2529.3,2529.2,6.04452]
[1748645963203,0.79047,2529.4,2529.3,0.79045]
[1748645964101,0.79049,2529.3,2529.2,6.0445]
[1748645964803,0.79049,2529.3,2529.2,5.254]
[1748645964998,0.79052,2529.2,2529.1,3.2078]
[1748645965197,0.79064,2528.8,2528.7,3.2078]
[1748645965401,3.2078,2529.0,2528.9,0.79061]
[1748645965694,1.1906,2529.1,2529.0,0.79058]
[1748645965901,0.79056,2529.1,2528.9,0.7906]
[1748645966101,1.3217,2529.0,2528.8,0.79063]
[1748645966398,10.5015,2529.0,2528.6,0.01721246]
[1748645966601,10.5015,2529.0,2528.8,0.79062]
[1748645966602,7.2937,2529.0,2528.8,0.79062]
[1748645967103,8.08429,2529.0,2528.8,0.79062]
[1748645967692,8.08429,2529.0,2528.6,1.26791246]
[1748645967693,8.08429,2529.0,2528.7,0.79065]
[1748645967895,7.2937,2529.0,2528.9,0.79061]
[1748645968703,1.96637,2529.7,2529.6,0.79039]
[1748645968910,8.463,2529.7,2529.5,0.79041]
[1748645969098,0.79039,2529.6,2529.5,0.79041]
[1748645969298,8.463,2529.7,2529.2,3.2078]
[1748645969494,4.5228,2529.5,2529.1,1.3019]
[1748645969701,0.79048,2529.4,2529.3,0.79047]
[1748645970007,2.10546,2529.4,2529.3,0.79047]
[1748645970303,7.148,2529.7,2529.1,1.3019]
[1748645970491,0.79046,2529.4,2529.3,0.79046]
[1748645970801,3.29101,2529.6,2529.1,1.3019]
[1748645971002,1.97609,2529.5,2529.1,0.79053]
[1748645971203,1.3295,2529.4,2529.0,1.204]
[1748645971401,7.148,2529.7,2529.3,0.79049]
[1748645971600,0.79046,2529.5,2529.4,0.79044]